[Event "Titled Tuesday Blitz May 4 2021"]
[White "Krysa, Leandro"]
[Black "Sergey85Rodchenkov"]
[WhiteFideId "116807"]
[WhiteElo "2490"]
[BlackElo "2534"]
[Result "1-0"]
[Round "08"]
[TimeControl "180+1"]
[Date "2021.05.04"]
[WhiteClock "0:00:10"]
[BlackClock "0:00:01"]

1. e4 {[%clk 0:03:00]}  c5 {[%clk 0:02:59]} 2. Nf3 {[%clk 0:03:00]}  d6 {[%clk 0:02:59]} 3. d4 {[%clk 0:03:00]}  cxd4 {[%clk 0:03:00]} 4. Nxd4 {[%clk 0:03:01]}  Nf6 {[%clk 0:03:00]} 5. Bc4 {[%clk 0:03:01]}  e6 {[%clk 0:02:59]} 6. Bd3 {[%clk 0:03:00]}  a6 {[%clk 0:02:57]} 7. c4 {[%clk 0:02:59]}  Be7 {[%clk 0:02:55]} 8. Nc3 {[%clk 0:02:59]}  O-O {[%clk 0:02:56]} 9. O-O {[%clk 0:03:00]}  Qc7 {[%clk 0:02:55]} 10. Be3 {[%clk 0:02:57]}  b6 {[%clk 0:02:55]} 11. Rc1 {[%clk 0:02:56]}  Bb7 {[%clk 0:02:55]} 12. f4 {[%clk 0:02:54]}  Nbd7 {[%clk 0:02:55]} 13. b4 {[%clk 0:02:47]}  Rac8 {[%clk 0:02:55]} 14. g4 {[%clk 0:02:41]}  Rfd8 {[%clk 0:02:22]} 15. g5 {[%clk 0:02:39]}  Ne8 {[%clk 0:02:22]} 16. f5 {[%clk 0:02:25]}  exf5 {[%clk 0:02:15]} 17. Nd5 {[%clk 0:02:07]}  Bxd5 {[%clk 0:02:13]} 18. cxd5 {[%clk 0:02:08]}  Qb7 {[%clk 0:02:04]} 19. Nc6 {[%clk 0:02:00]}  Ne5 {[%clk 0:02:03]} 20. Nxd8 {[%clk 0:01:46]}  Bxd8 {[%clk 0:02:03]} 21. Rxc8 {[%clk 0:01:40]}  Qxc8 {[%clk 0:02:02]} 22. exf5 {[%clk 0:01:41]}  b5 {[%clk 0:01:59]} 23. Qd2 {[%clk 0:01:09]}  Nc7 {[%clk 0:01:56]} 24. Qc3 {[%clk 0:00:51]}  Qd7 {[%clk 0:01:55]} 25. Be4 {[%clk 0:00:47]}  Nc4 {[%clk 0:01:53]} 26. Bc1 {[%clk 0:00:46]}  f6 {[%clk 0:01:40]} 27. h4 {[%clk 0:00:42]}  Qf7 {[%clk 0:01:37]} 28. Qf3 {[%clk 0:00:40]}  Ne5 {[%clk 0:01:33]} 29. Qg2 {[%clk 0:00:39]}  Qh5 {[%clk 0:01:25]} 30. gxf6 {[%clk 0:00:25]}  Bxf6 {[%clk 0:01:25]} 31. Bg5 {[%clk 0:00:26]}  Ne8 {[%clk 0:01:21]} 32. Bf3 {[%clk 0:00:26]}  Qf7 {[%clk 0:01:15]} 33. Rc1 {[%clk 0:00:25]}  Qd7 {[%clk 0:01:09]} 34. Be4 {[%clk 0:00:23]}  Kf8 {[%clk 0:01:08]} 35. a3 {[%clk 0:00:18]}  Qa7+ {[%clk 0:01:05]} 36. Qf2 {[%clk 0:00:15]}  Qe7 {[%clk 0:01:04]} 37. Qg2 {[%clk 0:00:14]}  Nc4 {[%clk 0:01:00]} 38. Kh1 {[%clk 0:00:12]}  Qe5 {[%clk 0:00:55]} 39. Rg1 {[%clk 0:00:12]}  h6 {[%clk 0:00:42]} 40. Bxf6 {[%clk 0:00:11]}  Qxf6 {[%clk 0:00:42]} 41. Qg3 {[%clk 0:00:07]}  Ne5 {[%clk 0:00:40]} 42. Bf3 {[%clk 0:00:06]}  Qd8 {[%clk 0:00:38]} 43. Bh5 {[%clk 0:00:05]}  Qe7 {[%clk 0:00:35]} 44. Bxe8 {[%clk 0:00:05]}  Kxe8 {[%clk 0:00:33]} 45. Rc1 {[%clk 0:00:04]}  Kf7 {[%clk 0:00:29]} 46. Rg1 {[%clk 0:00:03]}  Qf6 {[%clk 0:00:28]} 47. Qf4 {[%clk 0:00:03]}  Nc4 {[%clk 0:00:19]} 48. Qe4 {[%clk 0:00:03]}  Ne5 {[%clk 0:00:19]} 49. Rc1 {[%clk 0:00:03]}  Qe7 {[%clk 0:00:17]} 50. Rg1 {[%clk 0:00:03]}  Qa7 {[%clk 0:00:16]} 51. Qf4 {[%clk 0:00:02]}  Kf8 {[%clk 0:00:14]} 52. Qg3 {[%clk 0:00:03]}  Qf7 {[%clk 0:00:14]} 53. Qf4 {[%clk 0:00:03]}  Qxd5+ {[%clk 0:00:14]} 54. Rg2 {[%clk 0:00:02]}  h5 {[%clk 0:00:13]} 55. Qg5 {[%clk 0:00:01]}  Qf7 {[%clk 0:00:12]} 56. Qd8+ {[%clk 0:00:01]}  Qe8 {[%clk 0:00:11]} 57. Qxe8+ {[%clk 0:00:01]}  Kxe8 {[%clk 0:00:12]} 58. Rxg7 {[%clk 0:00:02]}  Nf3 {[%clk 0:00:12]} 59. Rh7 {[%clk 0:00:02]}  Nxh4 {[%clk 0:00:12]} 60. Rxh5 {[%clk 0:00:03]}  Nf3 {[%clk 0:00:12]} 61. Rh8+ {[%clk 0:00:04]}  Ke7 {[%clk 0:00:12]} 62. Ra8 {[%clk 0:00:04]}  Nd4 {[%clk 0:00:11]} 63. Rxa6 {[%clk 0:00:05]}  Kf6 {[%clk 0:00:12]} 64. Kg2 {[%clk 0:00:05]}  Kxf5 {[%clk 0:00:12]} 65. Rxd6 {[%clk 0:00:05]}  Ke4 {[%clk 0:00:11]} 66. Kf2 {[%clk 0:00:04]}  Kd3 {[%clk 0:00:11]} 67. Kg3 {[%clk 0:00:04]}  Kc4 {[%clk 0:00:11]} 68. Kf4 {[%clk 0:00:03]}  Nc2 {[%clk 0:00:12]} 69. Rc6+ {[%clk 0:00:03]}  Kb3 {[%clk 0:00:11]} 70. Ke4 {[%clk 0:00:03]}  Nxa3 {[%clk 0:00:11]} 71. Kd3 {[%clk 0:00:02]}  Kxb4 {[%clk 0:00:12]} 72. Rc8 {[%clk 0:00:03]}  Nc4 {[%clk 0:00:12]} 73. Kd4 {[%clk 0:00:04]}  Na5 {[%clk 0:00:12]} 74. Rb8 {[%clk 0:00:04]}  Nc4 {[%clk 0:00:12]} 75. Kd3 {[%clk 0:00:04]}  Na5 {[%clk 0:00:12]} 76. Kc2 {[%clk 0:00:04]}  Nc4 {[%clk 0:00:12]} 77. Rh8 {[%clk 0:00:05]}  Na3+ {[%clk 0:00:12]} 78. Kd3 {[%clk 0:00:04]}  Nc4 {[%clk 0:00:13]} 79. Rh4 {[%clk 0:00:04]}  Kb3 {[%clk 0:00:12]} 80. Rh8 {[%clk 0:00:03]}  b4 {[%clk 0:00:12]} 81. Rb8 {[%clk 0:00:04]}  Nb2+ {[%clk 0:00:12]} 82. Kd2 {[%clk 0:00:04]}  Na4 {[%clk 0:00:12]} 83. Kc1 {[%clk 0:00:05]}  Nc3 {[%clk 0:00:12]} 84. Rh8 {[%clk 0:00:05]}  Na2+ {[%clk 0:00:12]} 85. Kb1 {[%clk 0:00:05]}  Nc3+ {[%clk 0:00:13]} 86. Ka1 {[%clk 0:00:06]}  Kc2 {[%clk 0:00:13]} 87. Rh2+ {[%clk 0:00:06]}  Kb3 {[%clk 0:00:13]} 88. Rb2+ {[%clk 0:00:06]}  Ka3 {[%clk 0:00:13]} 89. Rh2 {[%clk 0:00:07]}  Kb3 {[%clk 0:00:13]} 90. Rb2+ {[%clk 0:00:06]}  Ka3 {[%clk 0:00:13]} 91. Rc2 {[%clk 0:00:05]}  Kb3 {[%clk 0:00:14]} 92. Rd2 {[%clk 0:00:03]}  Ka3 {[%clk 0:00:14]} 93. Rd8 {[%clk 0:00:03]}  Kb3 {[%clk 0:00:14]} 94. Ra8 {[%clk 0:00:03]}  Nd1 {[%clk 0:00:11]} 95. Rb8 {[%clk 0:00:03]}  Nc3 {[%clk 0:00:11]} 96. Ra8 {[%clk 0:00:04]}  Nd1 {[%clk 0:00:12]} 97. Kb1 {[%clk 0:00:04]}  Nc3+ {[%clk 0:00:12]} 98. Kc1 {[%clk 0:00:05]}  Na2+ {[%clk 0:00:12]} 99. Kd2 {[%clk 0:00:05]}  Nc3 {[%clk 0:00:12]} 100. Rb8 {[%clk 0:00:05]}  Na2 {[%clk 0:00:10]} 101. Kd3 {[%clk 0:00:05]}  Nc3 {[%clk 0:00:09]} 102. Kd4 {[%clk 0:00:06]}  Ka4 {[%clk 0:00:09]} 103. Kc4 {[%clk 0:00:05]}  Ka3 {[%clk 0:00:07]} 104. Rxb4 {[%clk 0:00:03]}  Na2 {[%clk 0:00:07]} 105. Rb3+ {[%clk 0:00:02]}  Ka4 {[%clk 0:00:07]} 106. Rg3 {[%clk 0:00:02]}  Nb4 {[%clk 0:00:06]} 107. Rg6 {[%clk 0:00:01]}  Ka3 {[%clk 0:00:04]} 108. Rg8 {[%clk 0:00:02]}  Nc2 {[%clk 0:00:04]} 109. Ra8+ {[%clk 0:00:03]}  Kb2 {[%clk 0:00:04]} 110. Rb8+ {[%clk 0:00:03]}  Kc1 {[%clk 0:00:05]} 111. Kc3 {[%clk 0:00:04]}  Ne1 {[%clk 0:00:03]} 112. Rh8 {[%clk 0:00:05]}  Kd1 {[%clk 0:00:03]} 113. Re8 {[%clk 0:00:05]}  Nc2 {[%clk 0:00:02]} 114. Kd3 {[%clk 0:00:04]}  Ne1+ {[%clk 0:00:03]} 115. Kc3 {[%clk 0:00:05]}  Nc2 {[%clk 0:00:03]} 116. Re7 {[%clk 0:00:06]}  Ne1 {[%clk 0:00:03]} 117. Rg7 {[%clk 0:00:07]}  Ke2 {[%clk 0:00:02]} 118. Re7+ {[%clk 0:00:06]}  Kf2 {[%clk 0:00:02]} 119. Kd4 {[%clk 0:00:06]}  Nf3+ {[%clk 0:00:02]} 120. Kd3 {[%clk 0:00:07]}  Ne1+ {[%clk 0:00:02]} 121. Kd2 {[%clk 0:00:08]}  Nf3+ {[%clk 0:00:02]} 122. Kd1 {[%clk 0:00:09]}  Kg3 {[%clk 0:00:02]} 123. Ke2 {[%clk 0:00:09]}  Nd4+ {[%clk 0:00:01]} 124. Kd3 {[%clk 0:00:09]}  Nf3 {[%clk 0:00:01]} 125. Re8 {[%clk 0:00:10]}  Ng5 {[%clk 0:00:01]} 126. Rf8 {[%clk 0:00:11]}  Kg4 {[%clk 0:00:01]} 127. Ke3 {[%clk 0:00:11]}  Ne6 {[%clk 0:00:01]} 128. Rf6 {[%clk 0:00:10]} 1-0


[Site "https://www.chess.com"]

[Event "Titled Tuesday Blitz May 4 2021"]
[White "Krzywda, Andrzej"]
[Black "Gandhi, Shyam"]
[WhiteFideId "1114565"]
[BlackFideId "2052008"]
[WhiteElo "2100"]
[BlackElo "1951"]
[Result "1-0"]
[Round "08"]
[TimeControl "180+1"]
[Date "2021.05.04"]
[WhiteClock "0:01:14"]
[BlackClock "0:01:25"]

1. e4 {[%clk 0:03:00]}  g6 {[%clk 0:03:00]} 2. Nc3 {[%clk 0:02:59]}  Bg7 {[%clk 0:03:01]} 3. f4 {[%clk 0:02:59]}  d6 {[%clk 0:03:01]} 4. Bc4 {[%clk 0:02:59]}  e6 {[%clk 0:03:01]} 5. d3 {[%clk 0:02:59]}  a6 {[%clk 0:03:01]} 6. Nf3 {[%clk 0:02:58]}  b5 {[%clk 0:03:01]} 7. Bb3 {[%clk 0:02:59]}  Ne7 {[%clk 0:03:01]} 8. O-O {[%clk 0:02:58]}  O-O {[%clk 0:03:01]} 9. Qe1 {[%clk 0:02:57]}  Bb7 {[%clk 0:03:01]} 10. Qh4 {[%clk 0:02:51]}  c5 {[%clk 0:03:00]} 11. f5 {[%clk 0:02:49]}  exf5 {[%clk 0:02:58]} 12. Bg5 {[%clk 0:02:38]}  Nbc6 {[%clk 0:02:56]} 13. Nd5 {[%clk 0:02:35]}  Re8 {[%clk 0:02:11]} 14. Nf6+ {[%clk 0:02:31]}  Bxf6 {[%clk 0:02:08]} 15. Bxf6 {[%clk 0:02:32]}  h5 {[%clk 0:02:00]} 16. exf5 {[%clk 0:02:05]}  c4 {[%clk 0:01:59]} 17. fxg6 {[%clk 0:01:56]}  Qb6+ {[%clk 0:01:59]} 18. Kh1 {[%clk 0:01:49]}  Nxg6 {[%clk 0:01:51]} 19. Qxh5 {[%clk 0:01:37]}  cxb3 {[%clk 0:01:25]} 20. Ng5 {[%clk 0:01:36]}  Re7 {[%clk 0:01:25]} 21. Qh6 {[%clk 0:01:14]} 1-0


[Site "https://www.chess.com"]

[Event "Titled Tuesday Blitz May 4 2021"]
[White "Lauridsen, Jesper Morch"]
[Black "Ronka, Erik"]
[WhiteFideId "1401890"]
[BlackFideId "505080"]
[WhiteElo "2290"]
[BlackElo "2264"]
[Result "0-1"]
[Round "08"]
[TimeControl "180+1"]
[Date "2021.05.04"]
[WhiteClock "0:00:01"]
[BlackClock "0:00:52"]

1. e4 {[%clk 0:03:00]}  c6 {[%clk 0:02:58]} 2. d4 {[%clk 0:03:00]}  d5 {[%clk 0:02:59]} 3. exd5 {[%clk 0:03:00]}  cxd5 {[%clk 0:03:00]} 4. c4 {[%clk 0:03:00]}  Nf6 {[%clk 0:03:00]} 5. Nc3 {[%clk 0:03:01]}  g6 {[%clk 0:03:00]} 6. Nf3 {[%clk 0:03:00]}  Bg7 {[%clk 0:03:00]} 7. Be2 {[%clk 0:02:58]}  dxc4 {[%clk 0:03:00]} 8. Bxc4 {[%clk 0:02:58]}  O-O {[%clk 0:03:01]} 9. O-O {[%clk 0:02:57]}  Nc6 {[%clk 0:03:01]} 10. Re1 {[%clk 0:02:53]}  Na5 {[%clk 0:03:00]} 11. Bd3 {[%clk 0:02:44]}  b6 {[%clk 0:03:00]} 12. Bg5 {[%clk 0:02:25]}  Bb7 {[%clk 0:02:58]} 13. Qe2 {[%clk 0:01:33]}  Re8 {[%clk 0:02:45]} 14. Rad1 {[%clk 0:01:31]}  a6 {[%clk 0:02:27]} 15. d5 {[%clk 0:01:26]}  b5 {[%clk 0:02:24]} 16. h3 {[%clk 0:00:52]}  Rc8 {[%clk 0:02:23]} 17. d6 {[%clk 0:00:39]}  exd6 {[%clk 0:02:14]} 18. Qxe8+ {[%clk 0:00:35]}  Qxe8 {[%clk 0:02:00]} 19. Rxe8+ {[%clk 0:00:34]}  Rxe8 {[%clk 0:01:52]} 20. Bf4 {[%clk 0:00:22]}  d5 {[%clk 0:01:40]} 21. b3 {[%clk 0:00:17]}  Ne4 {[%clk 0:01:19]} 22. Ne2 {[%clk 0:00:10]}  Nc6 {[%clk 0:01:10]} 23. Bxe4 {[%clk 0:00:08]}  dxe4 {[%clk 0:01:11]} 24. Nfd4 {[%clk 0:00:05]}  Nb4 {[%clk 0:01:08]} 25. Rd2 {[%clk 0:00:03]}  Nd3 {[%clk 0:01:07]} 26. Be3 {[%clk 0:00:03]}  f5 {[%clk 0:01:07]} 27. g3 {[%clk 0:00:03]}  Kf7 {[%clk 0:01:00]} 28. Nf4 {[%clk 0:00:02]}  Ne5 {[%clk 0:00:56]} 29. Kf1 {[%clk 0:00:01]}  g5 {[%clk 0:00:52]} 0-1


[Site "https://www.chess.com"]

[Event "Titled Tuesday Blitz May 4 2021"]
[White "Leitao, Rafael"]
[Black "Saraci, Nderim"]
[WhiteFideId "2101246"]
[BlackFideId "6351921"]
[WhiteElo "2609"]
[BlackElo "2486"]
[Result "1/2-1/2"]
[Round "08"]
[TimeControl "180+1"]
[Date "2021.05.04"]
[WhiteClock "0:00:21"]
[BlackClock "0:00:31"]

1. c4 {[%clk 0:03:00]}  Nf6 {[%clk 0:02:59]} 2. Nc3 {[%clk 0:02:59]}  e6 {[%clk 0:02:59]} 3. e4 {[%clk 0:02:59]}  d5 {[%clk 0:03:00]} 4. cxd5 {[%clk 0:02:58]}  exd5 {[%clk 0:03:00]} 5. e5 {[%clk 0:02:58]}  d4 {[%clk 0:02:57]} 6. exf6 {[%clk 0:02:54]}  dxc3 {[%clk 0:02:58]} 7. dxc3 {[%clk 0:02:03]}  Qxf6 {[%clk 0:02:55]} 8. Nf3 {[%clk 0:02:03]}  Bd6 {[%clk 0:02:52]} 9. Bd3 {[%clk 0:01:58]}  O-O {[%clk 0:02:50]} 10. O-O {[%clk 0:01:56]}  h6 {[%clk 0:02:50]} 11. Re1 {[%clk 0:01:50]}  Bf5 {[%clk 0:02:48]} 12. Bxf5 {[%clk 0:01:48]}  Qxf5 {[%clk 0:02:49]} 13. Nd4 {[%clk 0:01:48]}  Qd5 {[%clk 0:02:44]} 14. c4 {[%clk 0:01:34]}  Qxc4 {[%clk 0:02:26]} 15. Nf5 {[%clk 0:01:33]}  Nc6 {[%clk 0:02:13]} 16. b3 {[%clk 0:01:18]}  Qc3 {[%clk 0:02:08]} 17. Bxh6 {[%clk 0:01:14]}  gxh6 {[%clk 0:02:03]} 18. Qh5 {[%clk 0:00:49]}  Rae8 {[%clk 0:00:29]} 19. Nxh6+ {[%clk 0:00:44]}  Kg7 {[%clk 0:00:29]} 20. Nf5+ {[%clk 0:00:32]}  Kf6 {[%clk 0:00:29]} 21. Qh6+ {[%clk 0:00:20]}  Kxf5 {[%clk 0:00:29]} 22. Qh5+ {[%clk 0:00:20]}  Kf6 {[%clk 0:00:29]} 23. Qh6+ {[%clk 0:00:20]}  Kf5 {[%clk 0:00:30]} 24. Qh5+ {[%clk 0:00:20]}  Kf6 {[%clk 0:00:30]} 25. Qh6+ {[%clk 0:00:21]}  Kf5 {[%clk 0:00:31]} 1/2-1/2


[Site "https://www.chess.com"]

[Event "Titled Tuesday Blitz May 4 2021"]
[White "Lomaia, Diana"]
[Black "Landaw, Julian"]
[WhiteFideId "13612476"]
[BlackFideId "2023342"]
[WhiteElo "1742"]
[BlackElo "2312"]
[Result "1/2-1/2"]
[Round "08"]
[TimeControl "180+1"]
[Date "2021.05.04"]
[WhiteClock "0:00:06"]
[BlackClock "0:00:16"]

1. d4 {[%clk 0:03:00]}  d5 {[%clk 0:03:00]} 2. c4 {[%clk 0:03:00]}  c6 {[%clk 0:03:00]} 3. Nf3 {[%clk 0:03:00]}  e6 {[%clk 0:03:00]} 4. Nc3 {[%clk 0:03:00]}  dxc4 {[%clk 0:03:00]} 5. a4 {[%clk 0:02:59]}  Bb4 {[%clk 0:03:00]} 6. Qc2 {[%clk 0:02:47]}  Nf6 {[%clk 0:02:45]} 7. Bd2 {[%clk 0:02:41]}  a5 {[%clk 0:02:21]} 8. e4 {[%clk 0:02:29]}  b5 {[%clk 0:02:18]} 9. axb5 {[%clk 0:02:29]}  Bxc3 {[%clk 0:02:18]} 10. Bxc3 {[%clk 0:02:12]}  cxb5 {[%clk 0:02:18]} 11. b3 {[%clk 0:02:10]}  Bb7 {[%clk 0:02:15]} 12. bxc4 {[%clk 0:01:53]}  Bxe4 {[%clk 0:01:42]} 13. Bd3 {[%clk 0:01:53]}  Bxd3 {[%clk 0:01:38]} 14. Qxd3 {[%clk 0:01:52]}  bxc4 {[%clk 0:01:36]} 15. Qxc4 {[%clk 0:01:49]}  O-O {[%clk 0:01:36]} 16. O-O {[%clk 0:01:49]}  Nd5 {[%clk 0:01:26]} 17. Bd2 {[%clk 0:01:45]}  Nd7 {[%clk 0:01:20]} 18. Qb5 {[%clk 0:01:41]}  a4 {[%clk 0:00:43]} 19. Rxa4 {[%clk 0:01:37]}  Rxa4 {[%clk 0:00:44]} 20. Qxa4 {[%clk 0:01:37]}  N7b6 {[%clk 0:00:45]} 21. Qb5 {[%clk 0:01:33]}  Qa8 {[%clk 0:00:43]} 22. Rc1 {[%clk 0:01:31]}  Qa2 {[%clk 0:00:38]} 23. Be1 {[%clk 0:01:14]}  h6 {[%clk 0:00:38]} 24. Ne5 {[%clk 0:01:13]}  Qa3 {[%clk 0:00:29]} 25. Qc5 {[%clk 0:01:11]}  Qb2 {[%clk 0:00:23]} 26. Nd3 {[%clk 0:01:05]}  Qe2 {[%clk 0:00:20]} 27. Qc2 {[%clk 0:00:59]}  Qe4 {[%clk 0:00:16]} 28. Ne5 {[%clk 0:00:36]}  Qxd4 {[%clk 0:00:16]} 29. Nc6 {[%clk 0:00:36]}  Qf6 {[%clk 0:00:14]} 30. Bc3 {[%clk 0:00:34]}  Nxc3 {[%clk 0:00:12]} 31. Qxc3 {[%clk 0:00:34]}  Qxc3 {[%clk 0:00:13]} 32. Rxc3 {[%clk 0:00:35]}  Nd5 {[%clk 0:00:13]} 33. Rb3 {[%clk 0:00:31]}  Rc8 {[%clk 0:00:13]} 34. Rb8 {[%clk 0:00:25]}  Rxb8 {[%clk 0:00:12]} 35. Nxb8 {[%clk 0:00:26]}  Kf8 {[%clk 0:00:13]} 36. f3 {[%clk 0:00:26]}  Ke7 {[%clk 0:00:14]} 37. Nc6+ {[%clk 0:00:26]}  Kd6 {[%clk 0:00:14]} 38. Nd8 {[%clk 0:00:25]}  f6 {[%clk 0:00:12]} 39. Nb7+ {[%clk 0:00:25]}  Kc6 {[%clk 0:00:12]} 40. Nd8+ {[%clk 0:00:25]}  Kd7 {[%clk 0:00:12]} 41. Nb7 {[%clk 0:00:26]}  Nb4 {[%clk 0:00:11]} 42. Kf2 {[%clk 0:00:26]}  Na6 {[%clk 0:00:08]} 43. Na5 {[%clk 0:00:25]}  Kd6 {[%clk 0:00:08]} 44. Nc4+ {[%clk 0:00:25]}  Kd5 {[%clk 0:00:08]} 45. Nb6+ {[%clk 0:00:25]}  Kd4 {[%clk 0:00:09]} 46. Nd7 {[%clk 0:00:26]}  e5 {[%clk 0:00:09]} 47. Nf8 {[%clk 0:00:26]}  Kd5 {[%clk 0:00:09]} 48. Ng6 {[%clk 0:00:24]}  Nc5 {[%clk 0:00:09]} 49. Ne7+ {[%clk 0:00:24]}  Ke6 {[%clk 0:00:10]} 50. Nc6 {[%clk 0:00:23]}  Kd6 {[%clk 0:00:11]} 51. Nd8 {[%clk 0:00:23]}  Ne6 {[%clk 0:00:11]} 52. Nb7+ {[%clk 0:00:21]}  Kd5 {[%clk 0:00:11]} 53. g3 {[%clk 0:00:19]}  Kc6 {[%clk 0:00:11]} 54. Na5+ {[%clk 0:00:19]}  Kb6 {[%clk 0:00:12]} 55. Nc4+ {[%clk 0:00:19]}  Kc5 {[%clk 0:00:12]} 56. Ne3 {[%clk 0:00:20]}  g6 {[%clk 0:00:12]} 57. h3 {[%clk 0:00:19]}  f5 {[%clk 0:00:11]} 58. Nc2 {[%clk 0:00:17]}  Nd4 {[%clk 0:00:12]} 59. Ne3 {[%clk 0:00:16]}  Kd6 {[%clk 0:00:12]} 60. g4 {[%clk 0:00:17]}  Ke6 {[%clk 0:00:12]} 61. Nc4 {[%clk 0:00:16]}  Nb5 {[%clk 0:00:08]} 62. Nb6 {[%clk 0:00:16]}  Nd6 {[%clk 0:00:08]} 63. Ke3 {[%clk 0:00:13]}  Kf6 {[%clk 0:00:08]} 64. Nd7+ {[%clk 0:00:11]}  Ke6 {[%clk 0:00:08]} 65. Nf8+ {[%clk 0:00:11]}  Kf7 {[%clk 0:00:07]} 66. Nd7 {[%clk 0:00:12]}  Nc4+ {[%clk 0:00:06]} 67. Kd3 {[%clk 0:00:12]}  Ke7 {[%clk 0:00:07]} 68. Nc5 {[%clk 0:00:11]}  Nd6 {[%clk 0:00:07]} 69. Ke3 {[%clk 0:00:10]}  Kf6 {[%clk 0:00:08]} 70. Nd7+ {[%clk 0:00:10]}  Ke6 {[%clk 0:00:08]} 71. Nf8+ {[%clk 0:00:10]}  Kf7 {[%clk 0:00:08]} 72. Nd7 {[%clk 0:00:11]}  f4+ {[%clk 0:00:08]} 73. Kf2 {[%clk 0:00:10]}  Ke6 {[%clk 0:00:09]} 74. Nf8+ {[%clk 0:00:10]}  Kf6 {[%clk 0:00:10]} 75. Nd7+ {[%clk 0:00:09]}  Ke6 {[%clk 0:00:09]} 76. Nf8+ {[%clk 0:00:10]}  Kf7 {[%clk 0:00:09]} 77. Nd7 {[%clk 0:00:10]}  Nc4 {[%clk 0:00:09]} 78. Ke2 {[%clk 0:00:08]}  Ke6 {[%clk 0:00:09]} 79. Nf8+ {[%clk 0:00:09]}  Kf6 {[%clk 0:00:10]} 80. Nd7+ {[%clk 0:00:09]}  Kg5 {[%clk 0:00:11]} 81. Nf8 {[%clk 0:00:08]}  Nd6 {[%clk 0:00:10]} 82. h4+ {[%clk 0:00:08]}  Kf6 {[%clk 0:00:09]} 83. Nd7+ {[%clk 0:00:08]}  Ke6 {[%clk 0:00:10]} 84. Nf8+ {[%clk 0:00:08]}  Kf7 {[%clk 0:00:10]} 85. Nd7 {[%clk 0:00:09]}  e4 {[%clk 0:00:09]} 86. fxe4 {[%clk 0:00:08]}  Ke6 {[%clk 0:00:10]} 87. Nf8+ {[%clk 0:00:07]}  Kf7 {[%clk 0:00:09]} 88. Nd7 {[%clk 0:00:08]}  Nxe4 {[%clk 0:00:09]} 89. Kf3 {[%clk 0:00:08]}  Nc3 {[%clk 0:00:09]} 90. Kxf4 {[%clk 0:00:09]}  Nd5+ {[%clk 0:00:09]} 91. Kf3 {[%clk 0:00:08]}  Ke6 {[%clk 0:00:09]} 92. Nf8+ {[%clk 0:00:08]}  Kf6 {[%clk 0:00:10]} 93. Nd7+ {[%clk 0:00:08]}  Kg7 {[%clk 0:00:10]} 94. Ne5 {[%clk 0:00:09]}  Nf6 {[%clk 0:00:10]} 95. Kf4 {[%clk 0:00:08]}  Ne8 {[%clk 0:00:09]} 96. g5 {[%clk 0:00:08]}  h5 {[%clk 0:00:10]} 97. Nd7 {[%clk 0:00:07]}  Nd6 {[%clk 0:00:10]} 98. Nf6 {[%clk 0:00:07]}  Nf5 {[%clk 0:00:10]} 99. Nxh5+ {[%clk 0:00:04]}  Kf7 {[%clk 0:00:09]} 100. Nf6 {[%clk 0:00:05]}  Nxh4 {[%clk 0:00:09]} 101. Kg4 {[%clk 0:00:05]}  Nf5 {[%clk 0:00:09]} 102. Ne4 {[%clk 0:00:06]}  Ng7 {[%clk 0:00:09]} 103. Nd6+ {[%clk 0:00:05]}  Ke6 {[%clk 0:00:09]} 104. Ne4 {[%clk 0:00:05]}  Nf5 {[%clk 0:00:10]} 105. Nf6 {[%clk 0:00:06]}  Ne3+ {[%clk 0:00:10]} 106. Kf4 {[%clk 0:00:06]}  Nc4 {[%clk 0:00:11]} 107. Kg4 {[%clk 0:00:06]}  Ne5+ {[%clk 0:00:11]} 108. Kf4 {[%clk 0:00:06]}  Nd3+ {[%clk 0:00:12]} 109. Kg4 {[%clk 0:00:05]}  Nf2+ {[%clk 0:00:12]} 110. Kf4 {[%clk 0:00:05]}  Kf7 {[%clk 0:00:12]} 111. Nd5 {[%clk 0:00:04]}  Nd3+ {[%clk 0:00:13]} 112. Kg4 {[%clk 0:00:04]}  Nc5 {[%clk 0:00:13]} 113. Kf4 {[%clk 0:00:04]}  Ne6+ {[%clk 0:00:13]} 114. Kg4 {[%clk 0:00:04]}  Kg7 {[%clk 0:00:14]} 115. Nf4 {[%clk 0:00:05]}  Nd4 {[%clk 0:00:14]} 116. Nxg6 {[%clk 0:00:05]}  Kxg6 {[%clk 0:00:14]} 117. Kf4 {[%clk 0:00:05]}  Ne6+ {[%clk 0:00:15]} 118. Ke5 {[%clk 0:00:06]}  Nxg5 {[%clk 0:00:16]} 1/2-1/2


[Site "https://www.chess.com"]

[Event "Titled Tuesday Blitz May 4 2021"]
[White "Lonoff, Marc"]
[Black "Bashirli, Saadat"]
[WhiteFideId "2001349"]
[BlackFideId "13429990"]
[WhiteElo "2175"]
[BlackElo "1153"]
[Result "0-1"]
[Round "08"]
[TimeControl "180+1"]
[Date "2021.05.04"]
[WhiteClock "0:00:03"]
[BlackClock "0:00:43"]

1. c4 {[%clk 0:02:59]}  e6 {[%clk 0:02:59]} 2. e4 {[%clk 0:02:58]}  Nf6 {[%clk 0:02:58]} 3. Nc3 {[%clk 0:02:52]}  d6 {[%clk 0:02:57]} 4. g3 {[%clk 0:02:51]}  Nc6 {[%clk 0:02:57]} 5. Bg2 {[%clk 0:02:51]}  Bd7 {[%clk 0:02:56]} 6. Nge2 {[%clk 0:02:51]}  Be7 {[%clk 0:02:55]} 7. O-O {[%clk 0:02:52]}  O-O {[%clk 0:02:52]} 8. h3 {[%clk 0:02:47]}  e5 {[%clk 0:02:51]} 9. d3 {[%clk 0:02:47]}  Be6 {[%clk 0:02:49]} 10. Kh2 {[%clk 0:02:46]}  h6 {[%clk 0:02:45]} 11. Nd5 {[%clk 0:02:45]}  Bxd5 {[%clk 0:02:44]} 12. cxd5 {[%clk 0:02:32]}  Nd4 {[%clk 0:02:40]} 13. Nxd4 {[%clk 0:02:32]}  exd4 {[%clk 0:02:41]} 14. f4 {[%clk 0:02:31]}  c6 {[%clk 0:02:37]} 15. b3 {[%clk 0:01:59]}  cxd5 {[%clk 0:02:36]} 16. e5 {[%clk 0:01:44]}  dxe5 {[%clk 0:02:30]} 17. fxe5 {[%clk 0:01:44]}  Nh7 {[%clk 0:02:31]} 18. Bb2 {[%clk 0:01:43]}  Bc5 {[%clk 0:02:17]} 19. Qg4 {[%clk 0:01:40]}  Ng5 {[%clk 0:02:00]} 20. Bxd4 {[%clk 0:01:29]}  h5 {[%clk 0:01:43]} 21. Qh4 {[%clk 0:01:20]}  Bxd4 {[%clk 0:01:37]} 22. Qxd4 {[%clk 0:01:18]}  Rc8 {[%clk 0:01:27]} 23. Rf2 {[%clk 0:01:09]}  Qe7 {[%clk 0:01:24]} 24. Raf1 {[%clk 0:00:48]}  Rcd8 {[%clk 0:01:20]} 25. Qh4 {[%clk 0:00:34]}  g6 {[%clk 0:01:06]} 26. d4 {[%clk 0:00:32]}  Rd7 {[%clk 0:00:55]} 27. Rf6 {[%clk 0:00:09]}  Nh7 {[%clk 0:00:50]} 28. Qf4 {[%clk 0:00:03]}  Kg7 {[%clk 0:00:43]} 0-1


[Site "https://www.chess.com"]